bitfinex-derivatives/quotes_BTCF0:USTF0_20250716
["timestamp","ask_amount","ask_price","bid_price","bid_amount"]
[1752707587938,0.96766815,118650.0,118640.0,0.57404363]
[1752707588139,0.7565536,118650.0,118640.0,0.57404363]
[1752707588341,0.96766815,118650.0,118640.0,0.57404363]
[1752707588942,0.7565536,118650.0,118640.0,0.57404363]
[1752707589143,0.96766815,118650.0,118640.0,0.57404363]
[1752707591744,0.1694736,118650.0,118640.0,0.78515818]
[1752707592041,0.1694736,118650.0,118640.0,0.75491074]
[1752707592042,0.5876,118650.0,118640.0,0.75491074]
[1752707592743,0.5876,118650.0,118640.0,0.6790565]
[1752707593241,0.7560732,118650.0,118640.0,0.6790565]
[1752707593845,0.96718775,118650.0,118640.0,0.6790565]
[1752707594038,0.7560732,118650.0,118640.0,0.6790565]
[1752707594344,0.96718775,118650.0,118640.0,0.6790565]
[1752707594843,0.7560732,118650.0,118640.0,0.6790565]
[1752707595242,0.7560732,118650.0,118640.0,0.78515818]
[1752707595645,0.5876,118650.0,118640.0,0.78515818]
[1752707595839,0.58756,118650.0,118640.0,0.78515818]
[1752707598146,0.58752,118650.0,118640.0,0.6790565]
[1752707598846,0.001,118650.0,118640.0,0.6790565]
[1752707599046,0.58752,118650.0,118640.0,0.6790565]
[1752707599246,0.001,118650.0,118640.0,0.6790565]
[1752707599545,0.58752,118650.0,118640.0,0.6790565]
[1752707599947,0.58752,118650.0,118640.0,0.2568274]
[1752707600148,0.58752,118650.0,118640.0,0.78515818]
[1752707600348,0.001,118650.0,118640.0,0.78515818]
[1752707601249,0.001,118650.0,118640.0,0.36292908]
[1752707601449,0.001,118650.0,118640.0,0.78515818]
[1752707602250,0.001,118650.0,118640.0,0.36292908]
[1752707602449,0.001,118650.0,118640.0,0.6790565]
[1752707603351,0.001,118650.0,118640.0,0.78515818]
[1752707604552,0.001,118650.0,118640.0,0.86098465]
[1752707604953,0.001,118650.0,118640.0,0.75488297]
[1752707606954,0.001,118650.0,118640.0,0.33265387]
[1752707607152,0.001,118650.0,118640.0,0.75488297]
[1752707608153,0.001,118650.0,118640.0,0.36292908]
[1752707608356,0.001,118650.0,118640.0,0.78515818]
[1752707610250,0.001,118650.0,118640.0,0.36292908]
[1752707610549,0.001,118650.0,118640.0,0.78515818]
[1752707611457,0.1694732,118650.0,118640.0,0.36292908]
[1752707611656,0.38058775,118650.0,118640.0,0.78515818]
[1752707615762,0.38058775,118650.0,118640.0,0.36292908]
[1752707616061,0.38058775,118650.0,118640.0,0.78515818]
[1752707618864,0.38058775,118650.0,118640.0,0.57404363]
[1752707619065,0.21111455,118650.0,118640.0,0.6790565]
[1752707619266,0.37958775,118650.0,118640.0,0.6790565]
[1752707623664,0.92390135,118660.0,118640.0,0.5105691]
[1752707623871,1.05025555,118660.0,118650.0,0.57049644]
[1752707624071,1.00813995,118660.0,118650.0,0.57049644]
[1752707624871,0.96602525,118660.0,118650.0,0.57049644]
[1752707625071,0.96702525,118660.0,118650.0,0.57049644]
[1752707625366,0.79855455,118660.0,118650.0,0.57149644]
[1752707625572,0.001,118660.0,118650.0,1.44468392]
[1752707625772,0.001,118660.0,118650.0,1.36885099]
[1752707626962,0.001,118660.0,118650.0,1.2626823]
[1752707627366,0.001,118660.0,118650.0,1.36885099]
[1752707628373,0.001,118660.0,118650.0,1.15773644]
[1752707628970,0.001,118660.0,118650.0,1.36885099]
[1752707635175,0.001,118660.0,118650.0,1.38591849]
[1752707641175,0.001,118660.0,118650.0,1.2797498]
[1752707641480,0.06850829,118680.0,118670.0,0.2015848]
[1752707641683,0.2105211,118690.0,118680.0,0.2258306]
[1752707641875,0.42163565,118690.0,118680.0,0.75113549]
[1752707642077,0.42163565,118690.0,118680.0,0.32890639]
[1752707642383,0.42163565,118690.0,118680.0,0.54002094]
[1752707642681,0.48949464,118690.0,118680.0,0.54002094]
[1752707642983,0.27838009,118690.0,118680.0,0.54002094]
[1752707643378,0.48949464,118690.0,118680.0,0.54002094]
[1752707644178,0.27838009,118690.0,118680.0,0.54002094]
[1752707644380,0.49349464,118690.0,118680.0,0.54102094]
[1752707645182,0.28238009,118690.0,118680.0,0.54102094]
[1752707645384,0.49349464,118690.0,118680.0,0.54102094]
[1752707647486,0.49349464,118690.0,118680.0,0.46528515]
[1752707648187,0.49349464,118690.0,118680.0,0.2541706]
[1752707648382,0.49349464,118690.0,118680.0,0.46528515]
[1752707648788,0.49349464,118690.0,118680.0,0.2541706]
[1752707648982,0.49349464,118690.0,118680.0,0.46528515]
[1752707649288,0.49349464,118690.0,118680.0,0.2541706]
[1752707650090,0.70460919,118690.0,118680.0,0.2541706]
[1752707650889,0.49349464,118690.0,118680.0,0.2541706]
[1752707651289,0.28238009,118690.0,118680.0,0.2541706]
[1752707651488,0.49349464,118690.0,118680.0,0.2541706]
[1752707655786,0.49349464,118690.0,118680.0,0.32990639]
[1752707656690,0.70460919,118690.0,118680.0,0.32990639]
[1752707656890,0.49349464,118690.0,118680.0,0.32990639]
[1752707657185,0.49349464,118690.0,118680.0,0.16147579]
[1752707657486,0.49349464,118690.0,118680.0,0.12363579]
[1752707657487,0.70460919,118690.0,118680.0,0.12363579]
[1752707657685,0.70460919,118690.0,118680.0,0.07673579]
[1752707657885,0.70460919,118690.0,118680.0,0.001]
[1752707660092,0.70460919,118690.0,118680.0,0.04743]
[1752707660393,0.70460919,118690.0,118680.0,0.12316579]
[1752707661489,1.29024919,118690.0,118680.0,0.12316579]
[1752707662090,1.29024919,118690.0,118680.0,0.12805579]
[1752707665290,0.70460919,118690.0,118680.0,0.12805579]
[1752707665592,1.29016919,118690.0,118680.0,0.29648649]
[1752707667693,1.29016919,118690.0,118680.0,0.12805579]
[1752707668999,1.29016919,118690.0,118680.0,0.29648649]
[1752707669297,1.29016919,118690.0,118680.0,0.12805579]
[1752707671295,1.29016919,118690.0,118680.0,0.12316579]
[1752707671499,1.29016919,118690.0,118680.0,0.07673579]
[1752707673703,0.86794009,118690.0,118680.0,0.12575579]
[1752707673894,1.29016919,118690.0,118680.0,0.29418639]
[1752707674098,1.29016919,118690.0,118680.0,0.29883639]
[1752707674299,1.29008919,118690.0,118680.0,0.29883639]
[1752707674601,0.70460919,118690.0,118680.0,0.29883639]
[1752707674796,1.29008919,118690.0,118680.0,0.33012639]
[1752707677005,1.29008919,118690.0,118680.0,0.2543906]
[1752707677601,1.29008919,118690.0,118680.0,0.08596]
[1752707678304,1.29008919,118690.0,118680.0,0.05467]
[1752707678905,0.86786009,118690.0,118680.0,0.2231006]
[1752707679106,1.29008919,118690.0,118680.0,0.05467]
[1752707682507,0.86786009,118690.0,118680.0,0.05467]
[1752707682708,1.29008919,118690.0,118680.0,0.05467]
[1752707682909,0.86786009,118690.0,118680.0,0.2231006]
[1752707683110,1.29008919,118690.0,118680.0,0.2231006]
[1752707685008,1.29008919,118690.0,118680.0,0.2543906]
[1752707685408,1.29008919,118690.0,118680.0,0.2566806]
[1752707686807,1.29008919,118690.0,118680.0,0.33241639]
[1752707687811,0.49349464,118690.0,118680.0,0.54353094]
[1752707688010,0.49349464,118690.0,118680.0,0.46779515]
[1752707688214,1.28992919,118690.0,118680.0,0.2566806]
[1752707688811,1.28992919,118690.0,118680.0,0.2566807]
[1752707689113,1.28992919,118690.0,118680.0,0.08825]
[1752707689614,0.86770009,118690.0,118680.0,0.2566806]
[1752707689817,1.28992919,118690.0,118680.0,0.2566806]
[1752707694317,1.28992919,118690.0,118680.0,0.33241639]
[1752707698318,0.86770009,118690.0,118680.0,0.33241639]
[1752707698520,1.28992919,118690.0,118680.0,0.33241639]
[1752707701018,1.28592919,118690.0,118680.0,0.33141639]
[1752707701221,1.28892919,118690.0,118680.0,0.33241639]
[1752707703418,1.28892919,118690.0,118680.0,0.16398579]
[1752707703620,1.28892919,118690.0,118680.0,0.13040579]
[1752707703814,1.28892919,118690.0,118680.0,0.13741336]
[1752707704115,1.28892919,118690.0,118680.0,0.07673579]
[1752707704116,1.50004374,118690.0,118680.0,0.07673579]
[1752707704320,1.50004374,118690.0,118660.0,0.27922811]
[1752707704321,0.1684448,118670.0,118660.0,0.32709811]
[1752707704620,1.1757939,118670.0,118660.0,0.15864011]
[1752707704820,0.168459,118660.0,118650.0,0.2216349]
[1752707705120,0.59914131,118660.0,118650.0,0.0696775]
[1752707705420,0.81025586,118660.0,118650.0,0.0696775]
[1752707705817,0.97880786,118660.0,118650.0,0.07770716]
[1752707706016,0.76769331,118660.0,118650.0,0.07770716]
[1752707707018,0.62691481,118660.0,118650.0,0.07770716]
[1752707707518,0.62691481,118660.0,118650.0,0.12557716]
[1752707708321,0.62691481,118660.0,118650.0,0.0649375]
[1752707708819,0.45836281,118660.0,118650.0,0.0649375]
[1752707709414,0.17691221,118660.0,118650.0,0.0696775]
[1752707709619,0.45836281,118660.0,118650.0,0.0696775]
[1752707709918,0.46036281,118660.0,118650.0,0.0706775]
[1752707710320,0.46036281,118660.0,118650.0,0.0659375]
[1752707712720,0.46036281,118660.0,118650.0,0.0706775]
[1752707713918,0.46036281,118660.0,118650.0,0.13131716]
[1752707714118,0.46036281,118660.0,118650.0,0.05361]
[1752707717125,0.46036281,118660.0,118650.0,0.04887]
[1752707717623,0.46036281,118660.0,118650.0,0.001]
[1752707719328,0.17891221,118660.0,118650.0,0.001]
[1752707719529,0.46036281,118660.0,118650.0,0.001]
[1752707720529,0.46036281,118660.0,118650.0,0.05361]
[1752707721332,0.46036281,118660.0,118650.0,0.04887]
[1752707721532,0.46036281,118660.0,118650.0,0.001]
[1752707724736,0.46036281,118660.0,118650.0,0.04887]
[1752707725332,0.46036281,118660.0,118650.0,0.05361]
[1752707725636,0.46036281,118660.0,118650.0,0.04887]
[1752707726337,0.46036281,118660.0,118650.0,0.10950966]
[1752707726939,0.60109677,118660.0,118650.0,0.10950966]
[1752707727439,0.81218905,118660.0,118650.0,0.06163966]
[1752707730041,0.81218905,118660.0,118650.0,0.10950966]
[1752707730740,0.60109677,118660.0,118650.0,0.10950966]
[1752707732142,0.81218905,118660.0,118650.0,0.10950966]
[1752707732941,0.81218905,118660.0,118650.0,0.06163966]
[1752707734446,0.81218905,118660.0,118650.0,0.11550966]
[1752707734645,0.60109677,118660.0,118650.0,0.11550966]
[1752707736146,0.81218905,118660.0,118650.0,0.11550966]
[1752707739150,0.81218905,118660.0,118650.0,0.05487]
[1752707741251,0.81218905,118660.0,118650.0,0.001]
[1752707741750,0.81218905,118660.0,118650.0,0.06168594]
[1752707742440,0.81218905,118660.0,118650.0,0.11063594]
[1752707743546,0.17891221,118660.0,118650.0,0.11063594]
[1752707743753,0.81218905,118660.0,118650.0,0.11063594]
[1752707744049,0.81218905,118660.0,118650.0,0.11555594]
[1752707744758,0.81218905,118660.0,118650.0,0.11063594]
[1752707744955,0.81218905,118660.0,118650.0,0.06168594]
[1752707745751,0.81218905,118660.0,118650.0,0.11063594]
[1752707750046,0.81218905,118660.0,118650.0,0.11555594]
[1752707751160,0.1684874,118640.0,118630.0,0.14776768]
[1752707751455,1.38668424,118640.0,118630.0,0.14776768]
[1752707752046,1.17559196,118640.0,118630.0,0.14776768]
[1752707752650,1.17559196,118640.0,118630.0,0.14876768]
[1752707752651,1.17759196,118640.0,118630.0,0.14876768]
[1752707755652,1.38868424,118640.0,118630.0,0.13045768]
[1752707756761,1.38868424,118640.0,118630.0,0.05487]
[1752707756955,1.17759196,118640.0,118630.0,0.05487]
[1752707757258,1.17759196,118640.0,118630.0,0.13045768]
[1752707757660,1.17759196,118640.0,118630.0,0.05487]
[1752707758756,1.38868424,118640.0,118630.0,0.05487]
[1752707758962,1.38868424,118640.0,118630.0,0.04995]
[1752707759460,1.38868424,118640.0,118630.0,0.05487]
[1752707760361,1.38868424,118640.0,118630.0,0.04995]
[1752707760866,1.38868424,118640.0,118630.0,0.07658768]
[1752707761163,0.1685016,118630.0,118620.0,0.12945768]
[1752707761374,0.59068616,118630.0,118620.0,0.12945768]
[1752707763864,0.59168616,118630.0,118620.0,0.05487]
[1752707764172,0.59168616,118630.0,118620.0,0.001]
[1752707764370,0.59168616,118630.0,118620.0,0.05331]
[1752707765465,0.65789997,118630.0,118620.0,0.05331]
[1752707767067,0.65789997,118630.0,118620.0,0.11392755]
[1752707769674,0.65789997,118630.0,118620.0,0.10902755]
[1752707770165,0.78507652,118630.0,118620.0,0.06161755]
[1752707770366,0.9961688,118630.0,118620.0,0.001]
[1752707770672,0.78507652,118630.0,118620.0,0.001]
[1752707771872,0.9961688,118630.0,118620.0,0.001]
[1752707772674,0.80179264,118620.0,118610.0,0.10802755]
[1752707772871,1.38675264,118620.0,118610.0,0.10802755]
[1752707773172,1.38675264,118620.0,118610.0,0.11292755]
[1752707773372,1.39514401,118620.0,118610.0,0.11292755]
[1752707773972,1.39514401,118620.0,118610.0,0.05231]
[1752707774772,1.39514401,118620.0,118610.0,0.05331]
[1752707774973,1.18505173,118620.0,118610.0,0.05331]
[1752707775172,1.18505173,118620.0,118610.0,0.06844]
[1752707776374,1.39614401,118620.0,118610.0,0.05331]
[1752707776874,1.52342205,118620.0,118610.0,0.05331]
[1752707778876,1.52342205,118620.0,118610.0,0.001]
[1752707779574,1.52342205,118620.0,118610.0,0.04841]
[1752707779873,1.52342205,118620.0,118610.0,0.05331]
[1752707783173,1.52390205,118620.0,118610.0,0.05331]
[1752707784485,0.93846205,118620.0,118610.0,0.05331]
[1752707784677,1.52390205,118620.0,118610.0,0.04841]
[1752707784976,1.52390205,118620.0,118610.0,0.05331]
[1752707785778,0.30518521,118620.0,118610.0,0.05331]
[1752707785981,1.52386205,118620.0,118610.0,0.05331]
[1752707786980,0.93846205,118620.0,118610.0,0.05331]
[1752707787183,1.52406205,118620.0,118610.0,0.05331]
[1752707787680,0.1685293,118610.0,118600.0,0.05731]
[1752707787881,0.59071386,118610.0,118600.0,0.05731]
[1752707788180,0.7179485,118610.0,118600.0,0.07244]
[1752707788679,1.3038285,118610.0,118600.0,0.07244]
[1752707788880,1.3038285,118610.0,118600.0,0.07544]
[1752707789081,1.3048285,118610.0,118600.0,0.09105]
[1752707789581,1.3048685,118610.0,118600.0,0.09105]
[1752707790285,0.7189485,118610.0,118600.0,0.09105]
[1752707790483,0.7189485,118610.0,118600.0,0.09344]
[1752707790484,1.3048685,118610.0,118600.0,0.09344]
[1752707790980,0.96546158,118610.0,118600.0,0.2589834]
[1752707791179,0.96746158,118610.0,118600.0,0.2599834]
[1752707791882,1.17855386,118610.0,118600.0,0.09144]
[1752707792183,0.96746158,118610.0,118600.0,0.2599834]
[1752707792481,0.96746158,118610.0,118600.0,0.09144]
[1752707792684,1.17855386,118610.0,118600.0,0.09144]
[1752707792878,1.17855386,118610.0,118600.0,0.05831]
[1752707793187,1.17855386,118610.0,118600.0,0.09147]
[1752707794383,1.17855386,118610.0,118600.0,0.15205823]
[1752707796584,1.17855386,118610.0,118600.0,0.13402823]
[1752707797588,1.17855386,118610.0,118600.0,0.15253823]
[1752707797985,0.7563693,118610.0,118600.0,0.15253823]
[1752707798188,1.17855386,118610.0,118600.0,0.15253823]
[1752707799194,0.7563693,118610.0,118600.0,0.15253823]
[1752707799389,1.17855386,118610.0,118600.0,0.15253823]
[1752707799591,0.38162158,118610.0,118600.0,0.15253823]
[1752707799783,0.96818158,118610.0,118600.0,0.32108163]
[1752707800190,0.96818158,118610.0,118600.0,0.2604934]
[1752707801393,0.96818158,118610.0,118600.0,0.33626534]
[1752707802195,0.7571693,118610.0,118600.0,0.68267796]
[1752707802494,0.96826158,118610.0,118600.0,0.54735762]
[1752707802994,0.7571693,118610.0,118600.0,0.33626534]
[1752707804995,0.7571693,118610.0,118600.0,0.3531707]
[1752707806597,0.7551693,118610.0,118600.0,0.3521707]
[1752707806800,0.7561693,118610.0,118600.0,0.3531707]
[1752707807689,1.03774123,118610.0,118600.0,0.3531707]
[1752707808798,1.03674123,118610.0,118600.0,0.3521707]
[1752707808999,1.03774123,118610.0,118600.0,0.3531707]
[1752707809501,1.03674123,118610.0,118600.0,0.3521707]
[1752707809696,1.03774123,118610.0,118600.0,0.3531707]
[1752707810200,1.03774123,118610.0,118600.0,0.27739876]
[1752707810499,1.03774123,118610.0,118600.0,0.3532123]
[1752707812201,0.7561693,118610.0,118600.0,0.3532123]
[1752707812501,1.03774123,118610.0,118600.0,0.3532123]
[1752707814002,0.7561693,118610.0,118600.0,0.3532123]
[1752707814304,1.03774123,118610.0,118600.0,0.3532123]
[1752707817004,1.03774123,118610.0,118600.0,0.27739876]
[1752707817401,1.03774123,118610.0,118600.0,0.10885536]
[1752707817794,1.03774123,118610.0,118600.0,0.07521536]
[1752707818805,1.03774123,118610.0,118600.0,0.24375886]
[1752707819006,1.03774123,118610.0,118600.0,0.26032886]
[1752707819501,1.03774123,118610.0,118600.0,0.09178536]
[1752707820408,1.03774123,118610.0,118600.0,0.05831]
[1752707821909,0.7561693,118610.0,118600.0,0.05831]
[1752707822110,1.03774123,118610.0,118600.0,0.05831]
[1752707823010,1.03774123,118610.0,118600.0,0.07516199]
[1752707823909,1.03774123,118610.0,118600.0,0.15097553]
[1752707824206,1.03774123,118610.0,118600.0,0.20673558]
[1752707824510,1.03774123,118610.0,118600.0,0.13092485]
[1752707825908,1.03774123,118610.0,118600.0,0.08351485]
[1752707827012,1.17871198,118610.0,118600.0,0.08351485]
[1752707827912,1.17871198,118610.0,118600.0,0.07038199]
[1752707828113,1.17871198,118610.0,118600.0,0.07518199]
[1752707829518,1.17871198,118610.0,118600.0,0.15099553]
[1752707830410,1.17871198,118610.0,118600.0,0.07518199]
[1752707833118,1.17871198,118610.0,118600.0,0.13584761]
[1752707833318,1.17871198,118610.0,118600.0,0.07518199]
[1752707833519,1.17871198,118610.0,118600.0,0.13584614]
[1752707840522,0.7561693,118610.0,118600.0,0.13584614]
[1752707840727,1.17871198,118610.0,118600.0,0.13584614]
[1752707841827,1.17871198,118610.0,118600.0,0.10879199]
[1752707842926,1.17871198,118610.0,118600.0,0.16945054]
[1752707845432,1.17871198,118610.0,118600.0,0.10879199]
[1752707849033,1.17871198,118610.0,118600.0,0.09071199]
[1752707849226,1.17871198,118610.0,118600.0,0.15139698]
[1752707849423,1.17871198,118610.0,118600.0,0.09906698]
[1752707849634,1.17871198,118610.0,118600.0,0.08353698]
[1752707850130,1.17871198,118610.0,118600.0,0.06668499]
[1752707851837,1.17867198,118610.0,118600.0,0.06668499]
[1752707852831,1.17867198,118610.0,118600.0,0.006]
[1752707853334,1.17867198,118610.0,118600.0,0.06669642]
[1752707854031,1.17835198,118610.0,118600.0,0.06669642]
[1752707855829,0.59207198,118610.0,118600.0,0.06669642]
[1752707856039,1.17823198,118610.0,118600.0,0.06669642]
[1752707856533,1.17823198,118610.0,118600.0,0.006]
[1752707856737,1.17923198,118610.0,118600.0,0.006]
[1752707857541,0.1685574,118590.0,118580.0,0.18189426]
[1752707857835,1.17726008,118590.0,118580.0,0.07581354]
[1752707858038,0.1685717,118580.0,118570.0,0.07581354]
[1752707858240,0.1685859,118570.0,118560.0,0.19418487]
[1752707858439,0.96613724,118570.0,118560.0,0.40545621]
[1752707858737,0.96613724,118570.0,118560.0,0.19418947]
[1752707858939,1.03194946,118570.0,118560.0,0.40546081]
[1752707859137,1.03194946,118570.0,118560.0,0.51164396]
[1752707859332,1.03194946,118570.0,118560.0,0.30037262]
[1752707859736,1.03194946,118570.0,118560.0,0.29202281]
[1752707859936,1.03194946,118570.0,118560.0,0.50329415]
[1752707860240,1.03194946,118570.0,118560.0,0.12342271]
[1752707860241,1.2432208,118570.0,118560.0,0.12342271]
[1752707860436,0.0431415,118590.0,118570.0,0.0421434]
[1752707860742,0.7561975,118590.0,118580.0,0.59111438]
[1752707860938,0.7551975,118590.0,118580.0,0.59111438]
[1752707861235,0.7553175,118590.0,118580.0,0.3372277]
[1752707861442,0.1685575,118590.0,118580.0,0.75977038]
[1752707861641,0.7553175,118590.0,118580.0,0.41305708]
[1752707861841,0.7553175,118590.0,118580.0,0.83559976]
[1752707862036,0.37982884,118590.0,118580.0,0.87432842]
[1752707862236,0.2106649,118610.0,118600.0,0.18556962]
[1752707862441,0.7980249,118610.0,118600.0,0.7767363]
[1752707862642,1.00929624,118610.0,118600.0,0.39684096]
[1752707862842,1.00929624,118610.0,118600.0,0.47265277]
[1752707863042,0.7980249,118610.0,118600.0,0.26138143]
[1752707863540,0.8010249,118610.0,118600.0,0.26238143]
[1752707863743,1.08262511,118610.0,118600.0,0.09383813]
[1752707864241,1.08394511,118610.0,118600.0,0.26238143]
[1752707864441,1.08394511,118610.0,118600.0,0.09383813]
[1752707865542,1.08394511,118610.0,118600.0,0.26238143]
[1752707865939,1.08394511,118610.0,118600.0,0.09383813]
[1752707866137,1.08394511,118610.0,118600.0,0.26238143]
[1752707867342,1.08394511,118610.0,118600.0,0.09383813]
[1752707867540,1.08394511,118610.0,118600.0,0.26238143]
[1752707867741,1.08394511,118610.0,118600.0,0.09383813]
[1752707868142,1.08394511,118610.0,118600.0,0.07681181]
[1752707868841,1.08394511,118610.0,118600.0,0.001]
[1752707869244,1.08394511,118610.0,118600.0,0.07681181]
[1752707870742,1.08394511,118610.0,118600.0,0.001]
[1752707870942,1.08394511,118610.0,118600.0,0.06161737]
[1752707871143,2.25002511,118610.0,118600.0,0.06161737]
[1752707871446,2.25002511,118610.0,118600.0,0.06635737]
[1752707873147,2.25002511,118610.0,118600.0,0.06161737]
[1752707875045,2.25002511,118610.0,118600.0,0.06635737]
[1752707875951,2.25002511,118610.0,118600.0,0.001]
[1752707879453,0.3370958,118600.0,118590.0,0.06062008]
[1752707879752,0.90029622,118600.0,118590.0,0.06062008]
[1752707880250,0.1685575,118590.0,118580.0,0.07581181]
[1752707880549,0.1685717,118580.0,118570.0,0.08055181]
[1752707880850,1.03809191,118580.0,118570.0,0.08055181]
[1752707881244,1.03809191,118580.0,118570.0,0.07581181]
[1752707881446,1.04639903,118580.0,118570.0,0.07581181]
[1752707881849,0.1685859,118570.0,118560.0,0.18195518]
[1752707882047,0.1685859,118570.0,118560.0,0.08051203]
[1752707882550,0.7594259,118570.0,118560.0,0.45494031]
[1752707882748,0.7597459,118570.0,118560.0,0.1733401]
[1752707882949,0.82695022,118570.0,118560.0,0.45494031]
[1752707883150,0.82711022,118570.0,118560.0,0.45494031]
[1752707883343,0.82907022,118570.0,118560.0,0.56212346]
[1752707883544,0.23779022,118570.0,118560.0,0.56212346]
[1752707883745,0.82899022,118570.0,118560.0,0.28052325]
[1752707883947,0.23779022,118570.0,118560.0,0.56212346]
[1752707884252,0.82899022,118570.0,118560.0,0.56212346]
[1752707884551,0.23779022,118570.0,118560.0,0.45594031]
[1752707884948,0.82939022,118570.0,118560.0,0.45594031]
[1752707885252,0.82939022,118570.0,118560.0,0.56212346]
[1752707888151,0.82939022,118570.0,118560.0,0.28052325]
[1752707888845,1.11099043,118570.0,118560.0,0.11192315]
[1752707889251,1.11099043,118570.0,118560.0,0.28052325]
[1752707889859,1.11099043,118570.0,118560.0,0.11192315]
[1752707890957,1.11099043,118570.0,118560.0,0.001]
[1752707891257,1.11099043,118570.0,118560.0,0.07673498]
[1752707891559,1.11099043,118570.0,118560.0,0.06159306]
[1752707892261,1.11099043,118570.0,118560.0,0.001]
[1752707893460,0.82939022,118570.0,118560.0,0.001]
[1752707893761,1.11099043,118570.0,118560.0,0.001]
[1752707895963,1.39259064,118570.0,118560.0,0.001]
[1752707896263,0.1686143,118550.0,118540.0,0.13165789]
[1752707896467,1.04381451,118550.0,118540.0,0.11451306]
[1752707897066,1.04381451,118550.0,118540.0,0.05392]
[1752707897569,1.04393451,118550.0,118540.0,0.05592]
[1752707897868,1.04493451,118550.0,118540.0,0.05592]
[1752707898469,1.04465451,118550.0,118540.0,0.05592]
[1752707900064,1.04465451,118550.0,118540.0,0.05118]
[1752707900564,1.04537451,118550.0,118540.0,0.05118]
[1752707900765,1.04537451,118550.0,118540.0,0.05592]
[1752707900969,1.04525451,118550.0,118540.0,0.002]
[1752707901371,0.7636543,118550.0,118540.0,0.02691]
[1752707901670,1.04525451,118550.0,118540.0,0.05411]
[1752707901870,0.7636543,118550.0,118540.0,0.05411]
[1752707902070,1.04525451,118550.0,118540.0,0.05411]
[1752707902269,1.04533451,118550.0,118540.0,0.05411]
[1752707903370,1.04533451,118550.0,118540.0,0.04943]
[1752707903571,1.04533451,118550.0,118540.0,0.05411]
[1752707904864,1.04533451,118550.0,118540.0,0.002]
[1752707905069,1.04533451,118550.0,118540.0,0.05411]
[1752707905766,1.04525451,118550.0,118540.0,0.05411]
[1752707908369,1.04525451,118550.0,118540.0,0.04943]
[1752707908575,1.04525451,118550.0,118540.0,0.002]
[1752707909073,0.45121451,118550.0,118540.0,0.002]
[1752707909274,1.04477451,118550.0,118540.0,0.002]
[1752707910478,1.04477451,118550.0,118540.0,0.04943]
[1752707910878,0.45121451,118550.0,118540.0,0.04943]
[1752707911179,1.04449451,118550.0,118540.0,0.05411]
[1752707911875,1.04449451,118550.0,118540.0,0.04943]
[1752707914976,1.04449451,118550.0,118540.0,0.002]
[1752707915582,0.1686285,118540.0,118530.0,0.05211]
[1752707915984,0.45022871,118540.0,118530.0,0.05211]
[1752707916880,0.45222871,118540.0,118530.0,0.05311]
[1752707918388,0.1686428,118530.0,118520.0,0.06393374]
[1752707918590,0.45024301,118530.0,118520.0,0.11604374]
[1752707918883,0.7609228,118530.0,118520.0,0.56873095]
[1752707919281,0.7609228,118530.0,118520.0,0.60129095]
[1752707919483,0.7609228,118530.0,118520.0,0.54069789]
[1752707919683,0.7609228,118530.0,118520.0,0.25909768]
[1752707919984,0.77151094,118530.0,118520.0,0.31968965]
[1752707920180,0.77179094,118530.0,118520.0,0.60128986]
[1752707920384,0.7632028,118530.0,118520.0,0.60128986]
[1752707920583,0.7632028,118530.0,118520.0,0.43263286]
[1752707920985,0.7632028,118530.0,118520.0,0.15103265]
[1752707921186,1.04480301,118530.0,118520.0,0.15103265]
[1752707922088,0.7632028,118530.0,118520.0,0.15103265]
[1752707922387,1.04480301,118530.0,118520.0,0.15103265]
[1752707922881,0.45224301,118530.0,118520.0,0.15103265]
[1752707923078,0.7636028,118530.0,118520.0,0.15103265]
[1752707923282,0.46051584,118530.0,118520.0,0.15103265]
[1752707923489,1.05335584,118530.0,118520.0,0.15103265]
[1752707924092,1.04488301,118530.0,118520.0,0.15103265]
[1752707925589,1.05314994,118530.0,118520.0,0.15103265]
[1752707927296,1.05314994,118530.0,118520.0,0.06059197]
[1752707927488,1.05314994,118530.0,118520.0,0.11270197]
[1752707927693,1.05314994,118530.0,118520.0,0.14769197]
[1752707928991,1.05314994,118530.0,118520.0,0.06059197]
[1752707929194,1.05314994,118530.0,118520.0,0.10802197]
[1752707929492,0.168657,118520.0,118510.0,0.07943307]
[1752707929794,0.45025721,118520.0,118510.0,0.16410307]
[1752707929995,0.45025721,118520.0,118510.0,0.16653307]
[1752707930797,0.760537,118520.0,118510.0,0.33520427]
[1752707930997,0.168657,118520.0,118510.0,0.16653307]
[1752707931196,1.04445721,118520.0,118510.0,0.16653307]
[1752707933094,1.04445721,118520.0,118510.0,0.33520427]
[1752707933300,0.763177,118520.0,118510.0,0.33520427]
[1752707933498,0.170657,118520.0,118510.0,0.33520427]
[1752707933798,0.763537,118520.0,118510.0,0.33520427]
[1752707934800,0.763537,118520.0,118510.0,0.16653307]
[1752707935099,1.04513721,118520.0,118510.0,0.16659291]
[1752707935397,1.04513721,118520.0,118510.0,0.1059411]
[1752707938393,1.32673742,118520.0,118510.0,0.05211]
[1752707938599,1.32673742,118520.0,118510.0,0.11276623]
[1752707939093,1.04513721,118520.0,118510.0,0.05211]
[1752707940202,1.04469721,118520.0,118510.0,0.11276623]
[1752707941001,0.45225721,118520.0,118510.0,0.11276623]
[1752707941403,1.04449721,118520.0,118510.0,0.11276623]
[1752707941599,0.45225721,118520.0,118510.0,0.11276623]
[1752707941899,1.04453721,118520.0,118510.0,0.11276623]
[1752707942398,1.04445721,118520.0,118510.0,0.31461743]
[1752707943697,1.04445721,118520.0,118510.0,0.14594623]
[1752707943903,1.04445721,118520.0,118510.0,0.08529]
[1752707944098,0.45225721,118520.0,118510.0,0.08529]
[1752707944296,1.04449721,118520.0,118510.0,0.08529]
[1752707945596,0.45225721,118520.0,118510.0,0.08529]
[1752707945799,0.170657,118520.0,118510.0,0.2539612]
[1752707945996,1.04441721,118520.0,118510.0,0.08529]
[1752707946405,0.45225721,118520.0,118510.0,0.08529]
[1752707946597,1.04437721,118520.0,118510.0,0.08529]
[1752707946800,1.04429721,118520.0,118510.0,0.08529]
[1752707947000,1.04429721,118520.0,118510.0,0.2539612]
[1752707947201,0.45225721,118520.0,118510.0,0.08529]
[1752707947501,0.45225721,118520.0,118510.0,0.14597589]
[1752707948103,1.04449721,118520.0,118510.0,0.14597589]
[1752707948904,0.45225721,118520.0,118510.0,0.14597589]
[1752707949506,1.04433721,118520.0,118510.0,0.14597589]
[1752707950006,0.762737,118520.0,118510.0,0.14597589]
[1752707950201,1.04433721,118520.0,118510.0,0.10811589]
[1752707950407,1.32593742,118520.0,118510.0,0.06068589]
[1752707950800,1.04433721,118520.0,118510.0,0.06068589]
[1752707951108,1.04433721,118520.0,118510.0,0.14456589]
[1752707951303,0.45225721,118520.0,118510.0,0.14456589]
[1752707951502,1.04413721,118520.0,118510.0,0.31323709]
[1752707951806,1.04413721,118520.0,118510.0,0.14456589]